[Event "*** Titled Tuesday Blitz"]
[Site "Chess.com"]
[Date "2019.03.05"]
[Round "1"]
[White "DawidCzerw"]
[Black "Koksik_13"]
[Result "0-1"]
[WhiteElo "2263"]
[BlackElo "2627"]
[TimeControl "180+2"]
[EndTime "13:07:49 PST"]
[Termination "Koksik_13 won on time"]

1. d4 {[%clk 0:03:01.6]} 1... e6 {[%clk 0:03:00.2]} 2. c4 {[%clk 0:03:00]} 2...
d5 {[%clk 0:03:01.8]} 3. Nf3 {[%clk 0:02:53.6]} 3... a6 {[%clk 0:03:03.2]} 4. g3
{[%clk 0:02:45.7]} 4... dxc4 {[%clk 0:03:03.3]} 5. Bg2 {[%clk 0:02:44.3]} 5...
b5 {[%clk 0:03:04.8]} 6. O-O {[%clk 0:02:38.2]} 6... Bb7 {[%clk 0:03:05.5]} 7.
a4 {[%clk 0:02:38.6]} 7... Nf6 {[%clk 0:03:05.9]} 8. e3 {[%clk 0:02:37.9]} 8...
Be7 {[%clk 0:03:06.4]} 9. Qe2 {[%clk 0:02:38.7]} 9... O-O {[%clk 0:03:07.2]} 10.
e4 {[%clk 0:02:39.9]} 10... Nbd7 {[%clk 0:03:07.9]} 11. e5 {[%clk 0:02:30.8]}
11... Nd5 {[%clk 0:03:08.7]} 12. Nc3 {[%clk 0:02:29.3]} 12... Nxc3 {[%clk
0:03:07.9]} 13. bxc3 {[%clk 0:02:31.2]} 13... c5 {[%clk 0:03:09.4]} 14. axb5
{[%clk 0:02:07.1]} 14... axb5 {[%clk 0:03:09.3]} 15. Rb1 {[%clk 0:02:08.2]}
15... cxd4 {[%clk 0:02:59.7]} 16. Rxb5 {[%clk 0:01:52.8]} 16... d3 {[%clk
0:02:57.4]} 17. Qd2 {[%clk 0:01:43.9]} 17... Bc6 {[%clk 0:02:56.9]} 18. Rb1
{[%clk 0:01:44.1]} 18... Qc7 {[%clk 0:02:57.5]} 19. Qf4 {[%clk 0:01:43.5]} 19...
h6 {[%clk 0:02:57.8]} 20. Qxc4 {[%clk 0:01:38.7]} 20... Nc5 {[%clk 0:02:57.8]}
21. Be3 {[%clk 0:01:31.9]} 21... Ra5 {[%clk 0:02:54.9]} 22. Bxc5 {[%clk
0:01:26.3]} 22... Rxc5 {[%clk 0:02:55.3]} 23. Qxd3 {[%clk 0:01:27.7]} 23... Rd8
{[%clk 0:02:56.5]} 24. Qe3 {[%clk 0:01:26.3]} 24... Bxf3 {[%clk 0:02:53.9]} 25.
Qxf3 {[%clk 0:01:22.1]} 25... Qxe5 {[%clk 0:02:54.9]} 26. Rb7 {[%clk 0:01:16.9]}
26... Bf6 {[%clk 0:02:55.7]} 27. Rd1 {[%clk 0:01:03.8]} 27... Rxd1+ {[%clk
0:02:54.1]} 28. Qxd1 {[%clk 0:01:05.7]} 28... Qxc3 {[%clk 0:02:52.4]} 29. Rb8+
{[%clk 0:00:43.7]} 29... Kh7 {[%clk 0:02:50]} 30. Be4+ {[%clk 0:00:44]} 30... g6
{[%clk 0:02:50.9]} 31. Rb7 {[%clk 0:00:38.6]} 31... Rc7 {[%clk 0:02:48.6]} 32.
Rxc7 {[%clk 0:00:35.3]} 32... Qxc7 {[%clk 0:02:47.8]} 33. Qd3 {[%clk 0:00:35.7]}
33... Kg7 {[%clk 0:02:49]} 34. h4 {[%clk 0:00:36.4]} 34... h5 {[%clk 0:02:50.2]}
35. Kg2 {[%clk 0:00:37.7]} 35... Qc5 {[%clk 0:02:51.2]} 36. Qf3 {[%clk
0:00:37.9]} 36... Bd4 {[%clk 0:02:51.7]} 37. Ba8 {[%clk 0:00:37.9]} 37... e5
{[%clk 0:02:52.6]} 38. Bd5 {[%clk 0:00:35.9]} 38... f5 {[%clk 0:02:52.9]} 39.
Ba2 {[%clk 0:00:29.9]} 39... e4 {[%clk 0:02:47]} 40. Qe2 {[%clk 0:00:16.1]}
40... Qc6 {[%clk 0:02:47.8]} 41. Kh2 {[%clk 0:00:15.7]} 41... Qb6 {[%clk
0:02:48.5]} 42. Qc4 {[%clk 0:00:14.4]} 42... Bb2 {[%clk 0:02:08.7]} 43. Kg2
{[%clk 0:00:09.8]} 43... Qb7 {[%clk 0:02:08.8]} 44. Kh2 {[%clk 0:00:08.1]} 44...
Kh6 {[%clk 0:02:10]} 45. Kg2 {[%clk 0:00:08.9]} 45... e3+ {[%clk 0:02:10.6]} 46.
f3 {[%clk 0:00:09.6]} 46... Bg7 {[%clk 0:02:10.7]} 47. Qe2 {[%clk 0:00:10.2]}
47... Bd4 {[%clk 0:02:10.8]} 48. Qc4 {[%clk 0:00:10.8]} 48... Qb2+ {[%clk
0:02:11.2]} 49. Kh3 {[%clk 0:00:12.1]} 49... Qa1 {[%clk 0:02:08.8]} 50. Kg2
{[%clk 0:00:11.4]} 50... Qb2+ {[%clk 0:02:09.9]} 51. Kh3 {[%clk 0:00:12]} 51...
e2 {[%clk 0:02:11.5]} 0-1

[Event "*** Titled Tuesday Blitz"]
[Site "Chess.com"]
[Date "2019.03.05"]
[Round "1"]
[White "DonPreuss"]
[Black "DanielMieles1985"]
[Result "0-1"]
[WhiteElo "2199"]
[BlackElo "2573"]
[TimeControl "180+2"]
[EndTime "13:07:55 PST"]
[Termination "DanielMieles1985 won by checkmate"]

1. d4 {[%clk 0:03:01.4]} 1... Nf6 {[%clk 0:03:00.5]} 2. Nc3 {[%clk 0:03:02.1]}
2... d5 {[%clk 0:03:00.9]} 3. e4 {[%clk 0:03:03.4]} 3... dxe4 {[%clk 0:03:01]}
4. f3 {[%clk 0:03:05]} 4... e3 {[%clk 0:03:00.4]} 5. Bxe3 {[%clk 0:03:05.4]}
5... g6 {[%clk 0:03:02.1]} 6. Bd3 {[%clk 0:03:05]} 6... Bg7 {[%clk 0:03:03]} 7.
Nge2 {[%clk 0:03:06]} 7... O-O {[%clk 0:03:04]} 8. O-O {[%clk 0:03:07.5]} 8...
Nbd7 {[%clk 0:03:01.5]} 9. a3 {[%clk 0:03:08.5]} 9... e5 {[%clk 0:03:02.5]} 10.
d5 {[%clk 0:02:47.8]} 10... Nb6 {[%clk 0:02:59.4]} 11. Qe1 {[%clk 0:02:48.8]}
11... Nbxd5 {[%clk 0:02:58.5]} 12. Nxd5 {[%clk 0:02:50.1]} 12... Nxd5 {[%clk
0:02:59.7]} 13. Bd2 {[%clk 0:02:51.2]} 13... c6 {[%clk 0:02:59.9]} 14. Qg3
{[%clk 0:02:40.8]} 14... Qb6+ {[%clk 0:02:57.6]} 15. Kh1 {[%clk 0:02:41.2]}
15... Ne3 {[%clk 0:02:55.9]} 16. Rfe1 {[%clk 0:02:33.2]} 16... Bf5 {[%clk
0:02:54]} 17. Nc3 {[%clk 0:02:30.4]} 17... Nxc2 {[%clk 0:02:42.7]} 18. Bxf5
{[%clk 0:02:27.3]} 18... Nxa1 {[%clk 0:02:37.5]} 19. Ne4 {[%clk 0:02:04.3]}
19... Nc2 {[%clk 0:02:29.7]} 20. Rf1 {[%clk 0:02:02.2]} 20... Nd4 {[%clk
0:02:28]} 21. Bh3 {[%clk 0:02:02.9]} 21... Qxb2 {[%clk 0:02:24.8]} 22. Qh4
{[%clk 0:02:00.5]} 22... f5 {[%clk 0:02:16.6]} 23. Ng5 {[%clk 0:02:01.7]} 23...
h6 {[%clk 0:02:17.7]} 24. Bc1 {[%clk 0:02:00]} 24... Qb5 {[%clk 0:02:05.1]} 25.
Re1 {[%clk 0:01:54]} 25... hxg5 {[%clk 0:02:05.3]} 26. Bxg5 {[%clk 0:01:55.7]}
26... Qc4 {[%clk 0:01:49.4]} 27. Bh6 {[%clk 0:01:46.5]} 27... Qf7 {[%clk
0:01:45.9]} 28. Bg5 {[%clk 0:01:40.4]} 28... Bf6 {[%clk 0:01:42]} 29. f4 {[%clk
0:01:39.1]} 29... Bxg5 {[%clk 0:01:38.4]} 30. fxg5 {[%clk 0:01:39.5]} 30... e4
{[%clk 0:01:35.3]} 31. Qf4 {[%clk 0:01:34.5]} 31... Rad8 {[%clk 0:01:33.7]} 32.
g3 {[%clk 0:01:34.4]} 32... Ne6 {[%clk 0:01:32.9]} 33. Qe5 {[%clk 0:01:34.2]}
33... Nxg5 {[%clk 0:01:33]} 34. Bg2 {[%clk 0:01:34.7]} 34... Rd5 {[%clk
0:01:32.3]} 35. Qf4 {[%clk 0:01:35.7]} 35... Ne6 {[%clk 0:01:33.4]} 36. Qh6
{[%clk 0:01:35.5]} 36... Qg7 {[%clk 0:01:33.6]} 37. Qe3 {[%clk 0:01:36.9]} 37...
Rfd8 {[%clk 0:01:33.6]} 38. h3 {[%clk 0:01:36.4]} 38... a6 {[%clk 0:01:30.7]}
39. a4 {[%clk 0:01:32.3]} 39... Rd3 {[%clk 0:01:31.1]} 40. Qf2 {[%clk
0:01:33.1]} 40... Qe5 {[%clk 0:01:30.3]} 41. a5 {[%clk 0:01:33.6]} 41... Rd1
{[%clk 0:01:30.5]} 42. h4 {[%clk 0:01:28.4]} 42... Rxe1+ {[%clk 0:01:29.8]} 43.
Qxe1 {[%clk 0:01:30.3]} 43... Rd3 {[%clk 0:01:24.2]} 44. Kh2 {[%clk 0:01:18.1]}
44... f4 {[%clk 0:01:20]} 45. Bxe4 {[%clk 0:01:15.7]} 45... fxg3+ {[%clk
0:01:20.7]} 46. Kh3 {[%clk 0:01:13.4]} 46... Rd4 {[%clk 0:01:15.3]} 47. h5
{[%clk 0:01:09.7]} 47... Qxe4 {[%clk 0:01:09.9]} 48. Qc1 {[%clk 0:01:05]} 48...
Nf4+ {[%clk 0:01:05.9]} 49. Kg4 {[%clk 0:01:03.6]} 49... Ne2+ {[%clk 0:01:06.8]}
50. Kg5 {[%clk 0:01:04]} 50... Nxc1 {[%clk 0:01:07.2]} 51. Kh6 {[%clk
0:01:01.9]} 51... Qf4+ {[%clk 0:01:06.7]} 52. Kxg6 {[%clk 0:01:00.6]} 52... Rd6#
{[%clk 0:01:08.3]} 0-1

[Event "*** Titled Tuesday Blitz"]
[Site "Chess.com"]
[Date "2019.03.05"]
[Round "1"]
[White "JonahWillow"]
[Black "monalize"]
[Result "1-0"]
[WhiteElo "2662"]
[BlackElo "2301"]
[TimeControl "180+2"]
[EndTime "13:07:57 PST"]
[Termination "JonahWillow won on time"]

1. e4 {[%clk 0:03:01.6]} 1... c5 {[%clk 0:02:55.8]} 2. Nf3 {[%clk 0:03:02.6]}
2... d6 {[%clk 0:02:56]} 3. d4 {[%clk 0:03:03.5]} 3... cxd4 {[%clk 0:02:57]} 4.
Qxd4 {[%clk 0:03:05.4]} 4... Nf6 {[%clk 0:02:53.6]} 5. Nc3 {[%clk 0:03:01.7]}
5... e6 {[%clk 0:02:54]} 6. Bb5+ {[%clk 0:02:57.1]} 6... Nbd7 {[%clk 0:02:52.6]}
7. O-O {[%clk 0:02:48.4]} 7... Be7 {[%clk 0:02:49.8]} 8. Bg5 {[%clk 0:02:42.5]}
8... O-O {[%clk 0:02:49.3]} 9. Rad1 {[%clk 0:02:38.5]} 9... Nb6 {[%clk 0:02:15]}
10. Rfe1 {[%clk 0:02:26.9]} 10... a6 {[%clk 0:02:15.2]} 11. Bf1 {[%clk
0:02:25.3]} 11... Qc7 {[%clk 0:02:10.2]} 12. e5 {[%clk 0:01:55.3]} 12... dxe5
{[%clk 0:02:10.2]} 13. Nxe5 {[%clk 0:01:53.3]} 13... Rd8 {[%clk 0:02:06.5]} 14.
Qf4 {[%clk 0:01:53.3]} 14... Rxd1 {[%clk 0:02:02.3]} 15. Rxd1 {[%clk 0:01:55.2]}
15... h6 {[%clk 0:01:15.3]} 16. Bxh6 {[%clk 0:01:35.3]} 16... gxh6 {[%clk
0:01:14.9]} 17. Qg3+ {[%clk 0:01:30]} 17... Ng4 {[%clk 0:00:47.8]} 18. Qxg4+
{[%clk 0:01:25.5]} 18... Kf8 {[%clk 0:00:47.5]} 19. Ng6+ {[%clk 0:01:20.1]}
19... fxg6 {[%clk 0:00:46.8]} 20. Qxg6 {[%clk 0:01:22]} 20... Bg5 {[%clk
0:00:31.7]} 21. h4 {[%clk 0:01:13.4]} 21... Bf4 {[%clk 0:00:20.7]} 22. Qf6+
{[%clk 0:01:03.9]} 22... Ke8 {[%clk 0:00:19.7]} 23. Bd3 {[%clk 0:00:59.9]} 23...
Nd5 {[%clk 0:00:12.8]} 24. Bg6+ {[%clk 0:00:58.1]} 24... Kd7 {[%clk 0:00:12.7]}
25. Nxd5 {[%clk 0:00:56.2]} 25... exd5 {[%clk 0:00:13.6]} 26. Rxd5+ {[%clk
0:00:53.5]} 26... Bd6 {[%clk 0:00:14.9]} 27. Bf5+ {[%clk 0:00:32.2]} 27... Kc6
{[%clk 0:00:15.1]} 28. Rd3 {[%clk 0:00:26.3]} 28... b6 {[%clk 0:00:10.8]} 29.
Rc3+ {[%clk 0:00:25.2]} 29... Kb7 {[%clk 0:00:10.9]} 30. Be4+ {[%clk 0:00:21.3]}
1-0

[Event "*** Titled Tuesday Blitz"]
[Site "Chess.com"]
[Date "2019.03.05"]
[Round "1"]
[White "RiskyDecision"]
[Black "Man-Chuk"]
[Result "1-0"]
[WhiteElo "2431"]
[BlackElo "2769"]
[TimeControl "180+2"]
[EndTime "13:07:58 PST"]
[Termination "RiskyDecision won by checkmate"]

1. d4 {[%clk 0:02:56.9]} 1... Nf6 {[%clk 0:02:56.3]} 2. c4 {[%clk 0:02:57.4]}
2... e6 {[%clk 0:02:57.5]} 3. g3 {[%clk 0:02:57.7]} 3... d6 {[%clk 0:02:58]} 4.
Bg2 {[%clk 0:02:57.1]} 4... Nbd7 {[%clk 0:02:57.8]} 5. Nc3 {[%clk 0:02:56.7]}
5... c5 {[%clk 0:02:48.2]} 6. Nf3 {[%clk 0:02:49.3]} 6... cxd4 {[%clk
0:02:48.9]} 7. Nxd4 {[%clk 0:02:48.2]} 7... a6 {[%clk 0:02:49.1]} 8. O-O {[%clk
0:02:48]} 8... Qc7 {[%clk 0:02:49.9]} 9. b3 {[%clk 0:02:43.1]} 9... Be7 {[%clk
0:02:44.8]} 10. Bb2 {[%clk 0:02:39.3]} 10... O-O {[%clk 0:02:45.9]} 11. Rc1
{[%clk 0:02:38.1]} 11... Ne5 {[%clk 0:02:44.3]} 12. h3 {[%clk 0:02:31.5]} 12...
Bd7 {[%clk 0:02:43.5]} 13. f4 {[%clk 0:02:28.8]} 13... Ng6 {[%clk 0:02:38]} 14.
e4 {[%clk 0:02:15.7]} 14... Rac8 {[%clk 0:02:29.9]} 15. Kh1 {[%clk 0:02:07.8]}
15... Rfd8 {[%clk 0:02:27.6]} 16. f5 {[%clk 0:02:01.7]} 16... Ne5 {[%clk
0:02:25]} 17. fxe6 {[%clk 0:02:02.2]} 17... fxe6 {[%clk 0:02:25.7]} 18. Nce2
{[%clk 0:01:55.6]} 18... Re8 {[%clk 0:02:25]} 19. Nf4 {[%clk 0:01:48.8]} 19...
Bf8 {[%clk 0:02:25.5]} 20. Qe2 {[%clk 0:01:26.4]} 20... Re7 {[%clk 0:01:36.3]}
21. Nf3 {[%clk 0:01:24.9]} 21... Bc6 {[%clk 0:01:19.3]} 22. Nxe5 {[%clk
0:01:16.8]} 22... dxe5 {[%clk 0:01:20.5]} 23. Nd3 {[%clk 0:01:15.9]} 23... Nd7
{[%clk 0:01:21.4]} 24. Qe3 {[%clk 0:01:00.4]} 24... h6 {[%clk 0:01:08.5]} 25.
Rf2 {[%clk 0:01:00.1]} 25... Ree8 {[%clk 0:01:02]} 26. Rcf1 {[%clk 0:00:57]}
26... Be7 {[%clk 0:00:57.6]} 27. Rf7 {[%clk 0:00:52]} 27... Bg5 {[%clk
0:00:47.3]} 28. Qf3 {[%clk 0:00:44.1]} 28... Qd6 {[%clk 0:00:29.5]} 29. Qh5
{[%clk 0:00:38]} 29... Kh7 {[%clk 0:00:07.5]} 30. Rxg7+ {[%clk 0:00:37.6]} 30...
Kxg7 {[%clk 0:00:08.9]} 31. Rf7+ {[%clk 0:00:37.7]} 31... Kh8 {[%clk 0:00:10.5]}
32. Qg6 {[%clk 0:00:37.1]} 32... Nf8 {[%clk 0:00:11.6]} 33. Qg7# {[%clk
0:00:37.9]} 1-0

[Event "*** Titled Tuesday Blitz"]
[Site "Chess.com"]
[Date "2019.03.05"]
[Round "1"]
[White "pedromartinez91"]
[Black "bascheyaro"]
[Result "0-1"]
[WhiteElo "2406"]
[BlackElo "2791"]
[TimeControl "180+2"]
[EndTime "13:07:59 PST"]
[Termination "bascheyaro won by resignation"]

1. e4 {[%clk 0:03:01.9]} 1... e6 {[%clk 0:02:57]} 2. d4 {[%clk 0:03:02.3]} 2...
d5 {[%clk 0:02:58.3]} 3. Nd2 {[%clk 0:03:03.5]} 3... c5 {[%clk 0:02:59.3]} 4.
exd5 {[%clk 0:03:03.9]} 4... exd5 {[%clk 0:03:01.2]} 5. Bb5+ {[%clk 0:03:04.4]}
5... Nc6 {[%clk 0:03:02]} 6. Ngf3 {[%clk 0:03:05.1]} 6... c4 {[%clk 0:03:03.3]}
7. O-O {[%clk 0:03:04.6]} 7... Bd6 {[%clk 0:03:04.4]} 8. Re1+ {[%clk 0:03:05.1]}
8... Ne7 {[%clk 0:03:05.2]} 9. c3 {[%clk 0:03:03.3]} 9... O-O {[%clk 0:03:05.9]}
10. Nf1 {[%clk 0:03:04.3]} 10... a6 {[%clk 0:03:05.6]} 11. Ba4 {[%clk 0:03:05]}
11... Bf5 {[%clk 0:03:01.4]} 12. Bc2 {[%clk 0:02:47.8]} 12... Re8 {[%clk
0:03:00.9]} 13. Bg5 {[%clk 0:02:46.1]} 13... Bxc2 {[%clk 0:02:54.6]} 14. Qxc2
{[%clk 0:02:45.9]} 14... f6 {[%clk 0:02:52.6]} 15. Bh4 {[%clk 0:02:43.2]} 15...
Qd7 {[%clk 0:02:52.8]} 16. Bg3 {[%clk 0:02:43.8]} 16... Nf5 {[%clk 0:02:51.5]}
17. Bxd6 {[%clk 0:02:43]} 17... Nxd6 {[%clk 0:02:50.4]} 18. Ne3 {[%clk
0:02:43.2]} 18... Ne7 {[%clk 0:02:43.2]} 19. Re2 {[%clk 0:02:14.6]} 19... Ndf5
{[%clk 0:01:46.4]} 20. Rae1 {[%clk 0:02:02.5]} 20... Nxe3 {[%clk 0:01:46.8]} 21.
Rxe3 {[%clk 0:02:02.3]} 21... Ng6 {[%clk 0:01:31.4]} 22. g3 {[%clk 0:01:51.5]}
22... Nf8 {[%clk 0:01:19.1]} 23. Kg2 {[%clk 0:01:44.3]} 23... Rxe3 {[%clk
0:01:18.7]} 24. Rxe3 {[%clk 0:01:44.6]} 24... Re8 {[%clk 0:01:20.6]} 25. Qe2
{[%clk 0:01:44.9]} 25... Rxe3 {[%clk 0:01:21.2]} 26. Qxe3 {[%clk 0:01:46.8]}
26... Kf7 {[%clk 0:01:20.3]} 27. Nh4 {[%clk 0:01:40.3]} 27... g6 {[%clk
0:01:14.7]} 28. Nf3 {[%clk 0:01:37.2]} 28... Qd6 {[%clk 0:01:11.8]} 29. a3
{[%clk 0:01:34.6]} 29... b5 {[%clk 0:01:12.9]} 30. Nd2 {[%clk 0:01:16.8]} 30...
a5 {[%clk 0:01:12]} 31. Qf3 {[%clk 0:01:17.8]} 31... Ne6 {[%clk 0:01:09.6]} 32.
Nf1 {[%clk 0:01:16.6]} 32... Ng5 {[%clk 0:01:07.5]} 33. Qg4 {[%clk 0:01:09.3]}
33... Qe6 {[%clk 0:01:06.4]} 34. Qxe6+ {[%clk 0:01:07]} 34... Kxe6 {[%clk
0:01:08.3]} 35. f3 {[%clk 0:01:01]} 35... Kd6 {[%clk 0:01:09.1]} 36. h4 {[%clk
0:01:01]} 36... Ne6 {[%clk 0:01:09.9]} 37. Kf2 {[%clk 0:01:01.1]} 37... Kc6
{[%clk 0:01:10.8]} 38. Ke3 {[%clk 0:01:01.9]} 38... b4 {[%clk 0:01:11.5]} 39.
axb4 {[%clk 0:01:03.8]} 39... axb4 {[%clk 0:01:12.8]} 40. g4 {[%clk 0:01:03.4]}
40... Kb5 {[%clk 0:01:12.9]} 41. f4 {[%clk 0:00:56.6]} 41... Ka4 {[%clk
0:01:10.1]} 42. Nd2 {[%clk 0:00:56.4]} 42... Nc7 {[%clk 0:01:06.9]} 43. f5
{[%clk 0:00:49.9]} 43... gxf5 {[%clk 0:01:07.8]} 44. g5 {[%clk 0:00:49.9]} 44...
fxg5 {[%clk 0:01:06.9]} 45. hxg5 {[%clk 0:00:51.8]} 45... Ne6 {[%clk 0:01:08.3]}
46. cxb4 {[%clk 0:00:50.5]} 46... Kxb4 {[%clk 0:01:09.2]} 47. Nf3 {[%clk
0:00:49.2]} 47... Kb3 {[%clk 0:01:10]} 0-1

[Event "*** Titled Tuesday Blitz"]
[Site "Chess.com"]
[Date "2019.03.05"]
[Round "1"]
[White "gunslinger222"]
[Black "SCIM"]
[Result "1/2-1/2"]
[WhiteElo "2191"]
[BlackElo "2550"]
[TimeControl "180+2"]
[EndTime "13:08:01 PST"]
[Termination "Game drawn by repetition"]

1. d4 {[%clk 0:03:00.4]} 1... Nf6 {[%clk 0:03:00]} 2. c4 {[%clk 0:03:01.5]} 2...
e6 {[%clk 0:03:00.8]} 3. Nc3 {[%clk 0:03:02.5]} 3... Bb4 {[%clk 0:03:02.3]} 4.
Nf3 {[%clk 0:03:03.5]} 4... c5 {[%clk 0:02:59.9]} 5. g3 {[%clk 0:03:03.1]} 5...
cxd4 {[%clk 0:02:59.7]} 6. Nxd4 {[%clk 0:03:05]} 6... Nc6 {[%clk 0:03:01.1]} 7.
Nb5 {[%clk 0:02:50.8]} 7... O-O {[%clk 0:03:00.6]} 8. Bg2 {[%clk 0:02:50.9]}
8... d5 {[%clk 0:02:53.5]} 9. O-O {[%clk 0:02:41.3]} 9... a6 {[%clk 0:02:53.7]}
10. cxd5 {[%clk 0:02:36.8]} 10... exd5 {[%clk 0:02:53.5]} 11. Nd4 {[%clk
0:02:29.7]} 11... Be6 {[%clk 0:02:51.8]} 12. Bg5 {[%clk 0:02:18]} 12... Be7
{[%clk 0:02:49.7]} 13. Na4 {[%clk 0:02:16.2]} 13... h6 {[%clk 0:02:45.9]} 14.
Bxf6 {[%clk 0:02:11.4]} 14... Bxf6 {[%clk 0:02:47.8]} 15. Nxe6 {[%clk
0:02:07.8]} 15... fxe6 {[%clk 0:02:47.2]} 16. Nc5 {[%clk 0:02:06.6]} 16... Qe7
{[%clk 0:02:46.9]} 17. Nxe6 {[%clk 0:02:05]} 17... Rfe8 {[%clk 0:02:43.6]} 18.
Nf4 {[%clk 0:02:04.7]} 18... Rad8 {[%clk 0:02:33]} 19. Qb3 {[%clk 0:02:03.4]}
19... Nd4 {[%clk 0:02:30.4]} 20. Bxd5+ {[%clk 0:02:01]} 20... Rxd5 {[%clk
0:02:20.6]} 21. Qxd5+ {[%clk 0:02:01]} 21... Kh7 {[%clk 0:02:22.2]} 22. Rad1
{[%clk 0:01:55.1]} 22... Rd8 {[%clk 0:02:07.4]} 23. Qc4 {[%clk 0:01:45.7]} 23...
g5 {[%clk 0:01:55.1]} 24. Nd5 {[%clk 0:01:39.1]} 24... Qe6 {[%clk 0:01:33.8]}
25. Nxf6+ {[%clk 0:01:38.2]} 25... Qxf6 {[%clk 0:01:34.4]} 26. Qc7+ {[%clk
0:01:35]} 26... Kg6 {[%clk 0:01:33.8]} 27. Rxd4 {[%clk 0:01:23.1]} 27... Rxd4
{[%clk 0:01:26.8]} 28. Qxb7 {[%clk 0:01:25]} 28... Rd2 {[%clk 0:01:25.5]} 29.
Qe4+ {[%clk 0:01:23.5]} 29... Qf5 {[%clk 0:01:19.1]} 30. Qxf5+ {[%clk
0:01:13.3]} 30... Kxf5 {[%clk 0:01:21]} 31. Rb1 {[%clk 0:01:12.9]} 31... Rxe2
{[%clk 0:01:21.5]} 32. a3 {[%clk 0:01:13.5]} 32... Ke4 {[%clk 0:01:18.4]} 33. b4
{[%clk 0:01:14]} 33... Ra2 {[%clk 0:01:09.4]} 34. Rb3 {[%clk 0:01:13.9]} 34...
g4 {[%clk 0:01:10.5]} 35. Kf1 {[%clk 0:01:12.2]} 35... h5 {[%clk 0:01:10.8]} 36.
b5 {[%clk 0:01:12.9]} 36... axb5 {[%clk 0:01:06.9]} 37. Rxb5 {[%clk 0:01:13.8]}
37... h4 {[%clk 0:01:00.9]} 38. gxh4 {[%clk 0:01:13.6]} 38... Rxa3 {[%clk
0:01:01.7]} 39. Kg2 {[%clk 0:01:13.2]} 39... Rh3 {[%clk 0:00:59.8]} 40. h5
{[%clk 0:01:13.3]} 40... Kf4 {[%clk 0:00:59.6]} 41. Rc5 {[%clk 0:01:12]} 41...
Rh4 {[%clk 0:00:57.9]} 42. Ra5 {[%clk 0:01:09.2]} 42... Rh3 {[%clk 0:00:58.1]}
43. Rb5 {[%clk 0:00:40]} 43... Rh4 {[%clk 0:00:52.7]} 44. Ra5 {[%clk 0:00:40.9]}
44... Rh3 {[%clk 0:00:53.4]} 45. Rb5 {[%clk 0:00:41.9]} 45... Rh4 {[%clk
0:00:53.6]} 46. Ra5 {[%clk 0:00:42.4]} 46... Rh3 {[%clk 0:00:54.4]} 1/2-1/2

[Event "*** Titled Tuesday Blitz"]
[Site "Chess.com"]
[Date "2019.03.05"]
[Round "1"]
[White "penguingm1"]
[Black "Muguet7"]
[Result "1-0"]
[WhiteElo "2890"]
[BlackElo "2429"]
[TimeControl "180+2"]
[EndTime "13:08:14 PST"]
[Termination "penguingm1 won by resignation"]

1. d4 {[%clk 0:03:00.8]} 1... Nf6 {[%clk 0:03:00.6]} 2. c4 {[%clk 0:03:00.3]}
2... e6 {[%clk 0:03:01.3]} 3. Nc3 {[%clk 0:03:01.3]} 3... Bb4 {[%clk 0:03:01.9]}
4. Qc2 {[%clk 0:03:02.8]} 4... O-O {[%clk 0:03:00.9]} 5. Nf3 {[%clk 0:03:04]}
5... c5 {[%clk 0:02:58.2]} 6. dxc5 {[%clk 0:03:05.1]} 6... Na6 {[%clk
0:02:58.9]} 7. g3 {[%clk 0:03:06.1]} 7... Nxc5 {[%clk 0:03:00]} 8. Bg2 {[%clk
0:03:06.9]} 8... Nce4 {[%clk 0:03:01]} 9. O-O {[%clk 0:03:08.2]} 9... Nxc3
{[%clk 0:03:00]} 10. bxc3 {[%clk 0:03:10.1]} 10... Be7 {[%clk 0:03:00.9]} 11. e4
{[%clk 0:03:11.7]} 11... d6 {[%clk 0:03:01.6]} 12. e5 {[%clk 0:03:13.1]} 12...
dxe5 {[%clk 0:03:01.8]} 13. Nxe5 {[%clk 0:03:15]} 13... Nd7 {[%clk 0:02:59.7]}
14. Nxd7 {[%clk 0:02:30.5]} 14... Qxd7 {[%clk 0:03:00.4]} 15. Be3 {[%clk
0:02:19.7]} 15... Qc7 {[%clk 0:02:56.9]} 16. Rab1 {[%clk 0:02:01.4]} 16... Qxc4
{[%clk 0:02:46.3]} 17. Rfd1 {[%clk 0:01:49.8]} 17... Bf6 {[%clk 0:02:41.9]} 18.
Rb3 {[%clk 0:00:58.3]} 18... a5 {[%clk 0:02:36.4]} 19. Bf1 {[%clk 0:00:54.6]}
19... Qa4 {[%clk 0:02:27.4]} 20. Bb5 {[%clk 0:00:43.1]} 20... Qg4 {[%clk
0:02:27.8]} 21. Be2 {[%clk 0:00:22.3]} 21... Qh3 {[%clk 0:02:14.7]} 22. Qd2
{[%clk 0:00:18.5]} 22... e5 {[%clk 0:02:10.5]} 23. Bf1 {[%clk 0:00:12.4]} 23...
Qh5 {[%clk 0:02:09.8]} 24. Be2 {[%clk 0:00:08.4]} 24... Qg6 {[%clk 0:02:09.9]}
25. Bc5 {[%clk 0:00:09.3]} 25... Be6 {[%clk 0:01:56.3]} 26. Rxb7 {[%clk
0:00:06.9]} 26... Rfd8 {[%clk 0:01:53.1]} 27. Qb2 {[%clk 0:00:08.1]} 27... Bd5
{[%clk 0:01:47.8]} 28. Rb6 {[%clk 0:00:05.6]} 28... Qe4 {[%clk 0:01:46.7]} 29.
f3 {[%clk 0:00:06.9]} 29... Qf5 {[%clk 0:01:45]} 30. Qb1 {[%clk 0:00:06.9]}
30... e4 {[%clk 0:01:42.4]} 31. Bd4 {[%clk 0:00:05.2]} 31... Bxd4+ {[%clk
0:01:35.9]} 32. Rxd4 {[%clk 0:00:07.1]} 32... Re8 {[%clk 0:01:24.5]} 33. Rb5
{[%clk 0:00:08]} 33... Rad8 {[%clk 0:01:21.8]} 34. c4 {[%clk 0:00:09.5]} 34...
exf3 {[%clk 0:01:16.5]} 35. Qxf5 {[%clk 0:00:10.1]} 35... fxe2 {[%clk
0:01:17.7]} 36. Rb1 {[%clk 0:00:11.5]} 36... Be6 {[%clk 0:01:10.4]} 37. Rxd8
{[%clk 0:00:10.4]} 37... Rxd8 {[%clk 0:01:11.6]} 38. Qc2 {[%clk 0:00:12]} 38...
Bg4 {[%clk 0:01:11]} 39. Re1 {[%clk 0:00:12.9]} 39... Rd1 {[%clk 0:01:08.5]} 40.
Kf2 {[%clk 0:00:14]} 40... g6 {[%clk 0:01:07.6]} 41. c5 {[%clk 0:00:14.2]} 41...
h5 {[%clk 0:01:05.3]} 42. c6 {[%clk 0:00:15.4]} 42... Rd6 {[%clk 0:01:05.8]} 43.
c7 {[%clk 0:00:16.2]} 43... Rf6+ {[%clk 0:01:05.6]} 44. Kg1 {[%clk 0:00:16.7]}
44... Kg7 {[%clk 0:01:01.8]} 45. c8=Q {[%clk 0:00:17.2]} 45... Bxc8 {[%clk
0:01:02.4]} 46. Qxc8 {[%clk 0:00:18.8]} 1-0